Cogmind - Beta 15 @@@ ROGUE MODE // 2025.10.12 @ 02:28:56 Player: aliser Result: Destroyed by Y-45 Defender with Heavy Assault Rifle Performance ------------- Evolutions (2) 1000 Regions Visited (4) 800 Robots Destroyed (47) 235 Value Destroyed (1427) 1427 Prototype IDs (10) 200 Alien Tech Used (0) 0 Bonus (0) 0 TOTAL SCORE: 3662 Bonus ------- None Cogmind --------- Core Integrity 0/550 Matter 295/300 Energy 267/280 System Corruption 0% Temperature Cool (23) Movement Treading (145) Location -8/Storage Parts ------- > --- POWER (1) -------- Heavy Ion Engine > --- PROPULSION (3) --- Advanced Treads Advanced Treads > --- UTILITY (5) ------ Improved Heat Sink Medium Storage Unit Advanced Targeting Computer Power Shielding Hardened Medium Armor Plating > --- WEAPON (2) ------- Heavy EM Shotgun Heavy Particle Gun > --- INVENTORY (10) --- Light Ion Engine Heavy Ion Engine Nuclear Core Advanced Treads Heat Sink Compact Battery (200) Advanced ECM Suite Hardened Light Armor Plating Improved Medium Laser Heavy Particle Cannon Peak State ------------ > --- POWER ------------ Heavy Ion Engine > --- PROPULSION ------- Advanced Treads Advanced Treads Advanced Treads > --- UTILITY ---------- Improved Heat Sink Medium Storage Unit Advanced Targeting Computer Power Shielding Hardened Medium Armor Plating > --- WEAPON ----------- Heavy EM Shotgun Heavy Particle Gun > --- INVENTORY -------- Light Ion Engine Heavy Ion Engine Nuclear Core Advanced Treads Heat Sink Compact Battery Advanced ECM Suite Hardened Light Armor Plating Improved Medium Laser Heavy Particle Cannon [Rating: 33] Favorites ----------- Power Heavy Ion Engine Engine Heavy Ion Engine Propulsion Wheel Treads Advanced Treads Leg Aluminum Leg Wheel Wheel Utility Medium Storage Unit Device Improved Sensor Array Storage Medium Storage Unit Processor Signal Interpreter Protection Light Armor Plating Weapon Heavy Particle Cannon Energy Gun Heavy EM Shotgun Energy Cannon Heavy Particle Cannon Ballistic Gun Light Assault Rifle Ballistic Cannon Improved Light Cannon Launcher Improved Grenade Launcher Special Weapon Mining Laser Build | -11 -10 -9 -8 -8 ------- Run | Yrd Mat Mat Mat Sto Slots Evolved 4 | . . 2 2 . Power . | . . . . . Propulsion 1 | . . 1 . . Utility 3 | . . 1 2 . Weapon . | . . . . . Parts Attached 66 | 6 4 14 22 20 Power 6 | 1 1 2 1 1 Engine 6 | 1 1 2 1 1 Core . | . . . . . Reactor . | . . . . . Propulsion 12 | 2 . 2 3 5 Treads 3 | . . . . 3 Leg 1 | . . . 1 . Wheel 8 | 2 . 2 2 2 Hover . | . . . . . Flight . | . . . . . Utility 25 | 1 2 4 10 8 Device 8 | . . 2 3 3 Storage 2 | 1 . 1 . . Processor 4 | . . . 2 2 Hackware . | . . . . . Protection 11 | . 2 1 5 3 Artifact . | . . . . . Weapon 23 | 2 1 6 8 6 Energy Gun 8 | 1 . . 4 3 Energy Cannon 4 | . 1 . 1 2 Ballistic Gun 2 | 1 . . 1 . Ballistic Cannon 2 | . . 1 1 . Launcher 6 | . . 4 1 1 Special Weapon 1 | . . 1 . . Impact Weapon . | . . . . . Slashing Weapon . | . . . . . Piercing Weapon . | . . . . . Special Melee Weapon . | . . . . . Unidentified Prototypes 4 | . . 1 3 . Parts Lost 27 | . 1 4 11 11 Power 1 | . 1 . . . Propulsion 7 | . . 1 3 3 Utility 8 | . . 1 3 4 Weapon 11 | . . 2 5 4 Highest Loss Streak 8 | . 1 4 8 3 To Critical Strikes . | . . . . . Average Backups 8 | . 5 7 9 9 Power 1 | . 1 1 1 2 Propulsion . | . . . . 1 Utility 4 | . 3 4 4 5 Weapon 1 | . . 1 3 . Tool/Special . | . . . . . Unused Backups 14 | . 1 4 2 7 Power 5 | . . 2 . 3 Propulsion 2 | . . . . 2 Utility 5 | . 1 2 1 1 Weapon 2 | . . . 1 1 Tool/Special . | . . . . . Average Slot Usage (%) 95 | . 98 97 94 96 Engine 9 | . 14 11 9 9 Treads 4 | . . . . 13 Wheel 20 | . 28 32 22 11 Device 14 | . . 10 17 15 Storage 9 | . 14 11 9 9 Processor 6 | . . . 9 8 Protection 10 | . 12 10 8 10 Energy Gun 7 | . 14 4 9 5 Energy Cannon 5 | . 12 10 . 7 Ballistic Cannon 2 | . . 3 4 . Launcher 1 | . . 1 . 2 Peak Build Rating 33 | 6 7 13 27 33 Average Rating 19 | 4 6 11 20 26 On Entrance 9 | . 6 7 12 24 Naked Turns . | . . . . . Heaviest Build 40 | 13 18 30 36 40 Greatest Support 66 | 26 26 36 36 66 Greatest Overweight (x) 9 | . . . 9 3 Average Overweight (x) . | . . . . . Largest Inventory Capacity 10 | 8 8 10 10 10 Average Capacity 9 | 7 8 8 10 10 Most Carried 10 | 1 8 10 10 10 Average Carried 8 | . 5 7 9 9 Final Capacity 10 | 8 8 10 10 10 Final Carried 10 | 1 7 10 10 10 Class Distribution -------------------- 100% | Mutant Dominant Class ---------------- Mutant | -10/Materials Mutant | -9/Materials Mutant | -8/Materials Mutant | -8/Storage Resources | -11 -10 -9 -8 -8 ----------- Run | Yrd Mat Mat Mat Sto Matter Collected 1259 | 204 87 110 619 239 Remotely . | . . . . . Salvage Created 1578 | . 341 227 315 695 Parts 124 | . 27 20 26 51 Haulers Intercepted 3 | . 1 1 1 . Recyclers Shooed 3 | . . 2 . 1 Parts Field Recycled . | . . . . . Retrieved Matter . | . . . . . Parts Self-Destructed . | . . . . . Prevented . | . . . . . Kills | -11 -10 -9 -8 -8 ------- Run | Yrd Mat Mat Mat Sto Combat Hostiles Destroyed 33 | . 6 5 10 12 Guns 8 | . 1 . 3 4 Cannons 9 | . 4 2 . 3 AOE 14 | . . 3 7 4 Classes Destroyed 11 | . 4 5 1 1 Worker 2 | . 1 . . 1 Builder 6 | . . 1 1 4 Tunneler 1 | . . 1 . . Hauler 3 | . 1 1 1 . Operator 1 | . 1 . . . Watcher 1 | . . 1 . . Swarmer 5 | . . . 5 . Grunt 18 | . 6 1 2 9 Brawler 2 | . . 1 1 . Sentry 7 | . . 3 2 2 Hunter 1 | . . . . 1 Best Kill Streak 6 | . 6 6 5 4 Combat Bots Only 5 | . 5 4 5 3 Max Kills in Single Turn 3 | . 1 1 2 3 Gunslinging . | . . . . . Exploded 2 | . . 1 2 1 Melee . | . . . . . Uniques/NPCs Destroyed . | . . . . . Combat | -11 -10 -9 -8 -8 -------- Run | Yrd Mat Mat Mat Sto Hostile Shots Fired 231 | . 9 42 64 116 Missed 61 | . 4 16 17 24 Hits 170 | . 5 26 47 92 Projectile 170 | . 5 26 47 92 Critical Strikes 5 | . . 1 1 3 Damage Taken 3503 | . 125 511 1194 1673 Core 672 | . 31 83 216 342 Absorbed by Shields . | . . . . . Redirected to Shielding 5 | . . . . 5 Core Remaining (%) 88 | 100 87 79 . . Volleys Fired 187 | 1 19 25 31 111 Largest 2 | 2 2 2 2 2 Hottest 135 | 70 110 110 101 135 Shots Fired 285 | 2 37 44 53 149 Gun 101 | 2 18 1 29 51 Cannon 143 | . 19 27 8 89 Launcher 25 | . . 13 10 2 Special 16 | . . 3 6 7 Kinetic 16 | 1 . 7 8 . Thermal 192 | 1 37 24 12 118 Explosive 25 | . . 13 10 2 Electromagnetic 52 | . . . 23 29 Robot Hit Streak 19 | . 8 8 8 19 Robot Miss Streak 8 | . 3 3 2 8 Penetration Max . | . . . . . Secondary Targets 2 | . . . 1 1 Max Gunslinging Chain 1 | . . . 1 1 Shots Hit Robots 129 | . 23 23 29 54 Core Hits 75 | . 11 18 20 26 Critical Kills 1 | . 1 . . . Critical Parts Destroyed . | . . . . . Critical Strikes 2 | . 2 . . . Burn 1 | . 1 . . . Meltdown 1 | . 1 . . . Melee Attacks . | . . . . . Impact . | . . . . . Slashing . | . . . . . Piercing . | . . . . . Sneak Attacks . | . . . . . Combat Hostiles . | . . . . . Follow-up Attacks . | . . . . . Damage Inflicted 3733 | . 368 775 896 1694 Guns 1205 | . 122 . 364 719 Cannons 1052 | . 246 268 95 443 Explosions 1476 | . . 507 437 532 Melee . | . . . . . Ramming . | . . . . . Kinetic 130 | . . 42 88 . Thermal 1745 | . 368 226 102 1049 Explosive 1080 | . . 507 388 185 Electromagnetic 771 | . . . 311 460 Impact 7 | . . . 7 . Slashing . | . . . . . Piercing . | . . . . . Highest Corruption . | . . . . . Average Corruption . | . . . . . Corruption Purged . | . . . . . Corruption Blocked . | . . . . . Overload Shots . | . . . . . Overflow Damage 66 | . . 4 8 54 Projectiles 1 | . . 1 . . Explosions 65 | . . 3 8 54 Melee . | . . . . . Knockbacks 1 | . . 1 . . Impact . | . . . . . Kinetic 1 | . . 1 . . Secondary . | . . . . . Self-Inflicted Damage 487 | . . 114 91 282 Shots 15 | . . 5 3 7 Rammed . | . . . . . Targets Rammed . | . . . . . Kicked . | . . . . . Crushed . | . . . . . Highest Temperature 489 | 20 489 418 234 352 Average Temperature 92 | 15 202 131 46 57 Received Heat Transfer 894 | . 30 144 216 504 Effects 7 | . 4 3 . . Shutdowns 2 | . 1 1 . . Energy Bleed 2 | . 2 . . . Interference 1 | . . 1 . . Short Circuit 1 | . . 1 . . Damage (minor) 1 | . 1 . . . Siege Activations . | . . . . . Martial Activations . | . . . . . Shielding Activations . | . . . . . Robots Disrupted . | . . . . . Combat Hostiles . | . . . . . Robots Corrupted 1 | . . . . 1 Combat Hostiles 1 | . . . . 1 Parts Fried 1 | . . . . 1 Impact Corruptions . | . . . . . Robots Melted 1 | . 1 . . . Combat Hostiles 1 | . 1 . . . Parts Melted 3 | . 1 . 1 1 Heat Transferred 3101 | . 962 481 161 1497 Parts Sabotaged . | . . . . . Parts Stolen . | . . . . . Parts Stripped . | . . . . . Power Chain Reactions 6 | . . . 1 5 Alert | -11 -10 -9 -8 -8 ------- Run | Yrd Mat Mat Mat Sto Maximum Alert Level 1 | . . . 1 . Low Security (%) 99 | 100 100 100 98 100 Level 1 . | . . . 1 . Level 2 . | . . . . . Level 3 . | . . . . . Level 4 . | . . . . . Level 5 . | . . . . . High Security . | . . . . . Max Security . | . . . . . Peak Influence 226 | . 134 165 226 158 Initial 42 | . . 37 32 42 Average 41 | . 71 63 35 31 Influence Increases 1326 | . 189 265 396 476 Destroy 0b10 Robot/C 660 | . 120 100 200 240 Destroy 0b10 Robot/NC 70 | . 15 20 10 25 Destroy Leader 168 | . 32 44 42 50 Successful Hack 22 | . 7 10 5 . Disable Machine 150 | . 15 30 60 45 Destroy Structure 211 | . . 61 79 71 Lose Combat Pursuer 45 | . . . . 45 Influence Decreases 1184 | . 100 277 373 434 Entered New Map 155 | . . 52 45 58 Time Decay 762 | . 90 153 218 301 Lost Part 235 | . 10 40 110 75 Purge Threat 32 | . . 32 . . Squads Dispatched 9 | . 3 . 5 1 Investigation 6 | . 2 . 3 1 Extermination . | . . . . . Reinforcement 3 | . 1 . 2 . Assault . | . . . . . Garrison . | . . . . . Intercept . | . . . . . Searches Triggered . | . . . . . Construction Impeded 1 | . . . 1 . Haulers Reinforced . | . . . . . Active Scanning Responses . | . . . . . Cargo Convoy Interrupts . | . . . . . Stealth | -11 -10 -9 -8 -8 --------- Run | Yrd Mat Mat Mat Sto Distress Signals 2 | . . 1 1 . Communications Jammed . | . . . . . Distress Signals . | . . . . . Times Spotted 61 | . 8 19 16 18 Peak Tracking Total 5 | . 2 5 4 3 Tactical Retreats 9 | . . 4 1 4 Traps | -11 -10 -9 -8 -8 ------- Run | Yrd Mat Mat Mat Sto Traps Triggered 3 | . 2 . 1 . Indirectly . | . . . . . Trap Hack Attempts . | . . . . . Triggered . | . . . . . Disarmed . | . . . . . Reprogrammed . | . . . . . Reused . | . . . . . Traps Extracted . | . . . . . Installed . | . . . . . Triggered . | . . . . . Machines | -11 -10 -9 -8 -8 ---------- Run | Yrd Mat Mat Mat Sto Machines Disabled 10 | . 1 2 4 3 Max in Single Turn 1 | . 1 1 1 1 Machines Repaired . | . . . . . Machines Dismantled . | . . . . . Machines Sabotaged . | . . . . . Overloaded Fab Kills . | . . . . . Hacking | -11 -10 -9 -8 -8 --------- Run | Yrd Mat Mat Mat Sto Machines Accessed 15 | . 2 7 5 1 Terminals 12 | . 1 6 4 1 Fabricators . | . . . . . Repair Stations 1 | . 1 . . . Recycling Units 1 | . . . 1 . Scanalyzers 1 | . . 1 . . Garrison Access . | . . . . . Total Hacks 40 | . 4 22 11 3 Successful 19 | . 3 9 7 . Failed 21 | . 1 13 4 3 Catastrophic 10 | . 1 6 2 1 Database Lockouts . | . . . . . Manual 11 | . 2 5 4 . Terminals 32 | . 2 18 9 3 Fabricators . | . . . . . Repair Stations 2 | . 2 . . . Recycling Units 2 | . . . 2 . Scanalyzers 4 | . . 4 . . Garrison Access . | . . . . . Terminal Hacks 13 | . 1 7 5 . Prototype ID Bank 3 | . . 1 2 . Branch Access Points 1 | . . 1 . . Emergency Access Points 1 | . . 1 . . Terminal Index 1 | . . 1 . . Alert Level 2 | . . 1 1 . Unreport Threat 1 | . . 1 . . Recall Investigation 1 | . 1 . . . Zone Layout 3 | . . 1 2 . Fabricator Hacks . | . . . . . Repair Station Hacks 1 | . 1 . . . Refit 1 | . 1 . . . Recycling Unit Hacks 1 | . . . 1 . Retrieve Components 1 | . . . 1 . Scanalyzer 2 | . . 2 . . Insert Component 1 | . . 1 . . Analyze 1 | . . 1 . . Garrison Access Hacks . | . . . . . Unauthorized Hacks 1 | . 1 . . . Terminals . | . . . . . Fabricators . | . . . . . Repair Stations 1 | . 1 . . . Patch 1 | . 1 . . . Recycling Units . | . . . . . Scanalyzers . | . . . . . Garrison Access . | . . . . . Data Cores Recovered . | . . . . . Used . | . . . . . Hacking Detections 13 | . 1 7 4 1 Full Trace Events 4 | . . 2 1 1 Feedback Events . | . . . . . Feedback Blocked . | . . . . . Robot Schematics Acquired . | . . . . . Robots Built . | . . . . . Authchips . | . . . . . Time . | . . . . . Total Robot Build Rating . | . . . . . Part Schematics Acquired 1 | . . 1 . . Parts Built . | . . . . . Authchips . | . . . . . Time . | . . . . . Total Part Build Rating . | . . . . . Parts Repaired . | . . . . . Time . | . . . . . Parts Recycled . | . . . . . Recycled Matter . | . . . . . Retrieved Matter . | . . . . . Retrieved Components 7 | . . . 7 . Parts Scanalyzed 1 | . . 1 . . Part Schematics Acquired 1 | . . 1 . . Parts Damaged . | . . . . . Bothacking | -11 -10 -9 -8 -8 ------------ Run | Yrd Mat Mat Mat Sto Used RIF Installer . | . . . . . Robots Hacked . | . . . . . Non-combat . | . . . . . Combat . | . . . . . Robot Hacks Applied . | . . . . . Relay Couplers Released . | . . . . . Fabnet Peak Effective % . | . . . . . Robots Rewired . | . . . . . Allies Hacked . | . . . . . Hacks Repelled . | . . . . . Allies | -11 -10 -9 -8 -8 -------- Run | Yrd Mat Mat Mat Sto Total Allies . | . . . . . Largest Group . | . . . . . Highest-Rated Group . | . . . . . Highest-Rated Ally . | . . . . . Total Orders . | . . . . . Ally Attacks . | . . . . . Total Damage . | . . . . . Kills . | . . . . . Allies Corrupted . | . . . . . Allies Melted . | . . . . . Intel | -11 -10 -9 -8 -8 ------- Run | Yrd Mat Mat Mat Sto Active Infowar (turns) 2488 | . . 556 1089 843 Optics 27 | . . . 27 . Sensors 1901 | . . . 1061 840 ECM 1497 | . . 556 907 34 Robot Analysis Total . | . . . . . Derelict Logs Recovered . | . . . . . Drone Launches . | . . . . . Drone Recoveries . | . . . . . Exploration | -11 -10 -9 -8 -8 ------------- Run | Yrd Mat Mat Mat Sto Turns Passed 3232 | 57 240 572 1293 1070 Spaces Moved 1793 | 47 183 453 649 461 Core 12 | 5 . . 7 . Treads 206 | . . . . 206 Legs 3 | . . . 3 . Wheels 1572 | 42 183 453 639 255 Hover . | . . . . . Flight . | . . . . . Fastest Speed 50 | 50 90 86 83 95 Average Speed 99 | 86 90 86 96 123 Slowest Speed 500 | 100 90 90 500 225 Overloaded Moves . | . . . . . Propulsion Burnouts . | . . . . . Robots Hopped . | . . . . . Potential Cave-ins 35 | . . . . 35 Cave-ins Triggered . | . . . . . Exploration Rate (%) 36 | 4 29 50 49 52 Regions Visited 4 Branch Regions 1 Pre-discovered Areas . | . . . . . Known Exits Taken 1 | . . . 1 . Unknown Exits Taken 3 | 1 1 1 . . Scrap Searched . | . . . . . Spaces Dug 72 | . . 3 13 56 Terrain Destroyed 259 | . . 69 82 108 Melee . | . . . . . Projectile 72 | . . 3 6 63 AOE 187 | . . 66 76 45 Terrain Rammed . | . . . . . Walls Destroyed . | . . . . . Machines Disabled . | . . . . . Actions | -11 -10 -9 -8 -8 --------- Run | Yrd Mat Mat Mat Sto Total 2909 | 58 222 584 1246 799 Wait 767 | 4 4 68 505 186 Move 1789 | 46 182 452 648 461 Hop . | . . . . . Pick Up 42 | 1 9 11 15 6 Fast Attach 28 | 6 . 5 7 10 Attach 17 | . 1 3 8 5 Detach 2 | . . 1 . 1 Swap 41 | . 3 9 20 9 Drop 36 | . 4 10 12 10 Fire 187 | 1 19 25 31 111 Melee . | . . . . . Ram . | . . . . . Kick . | . . . . . Crush . | . . . . . Escape Stasis . | . . . . . Rewire . | . . . . . Trap . | . . . . . Miscellaneous . | . . . . . Route ------- -11/Scrapyard -10/Materials -9/Materials (discovered 2 exits: *Mat / Min) -8/Materials (discovered 2 exits: *Fac / *Sto) -8/Storage (discovered 1 exit: *Fac) History --------- Turn | Location | Event 24 | -11/Scrapyard | Discovered new exit (range 16) 58 | -11/Scrapyard | Entered Materials 289 | -10/Materials | Discovered new exit (range 11) 298 | -10/Materials | Entered another Materials area 298 | -9/Materials | Evolved 2 slots: Propulsion x1, Utility x1 333 | -9/Materials | Build established: Mutant 617 | -9/Materials | Lost 4 parts (1n1u2w) 689 | -9/Materials | Identified exit to Mines 857 | -9/Materials | Discovered new exit (range 15) 870 | -9/Materials | Entered another Materials area 870 | -8/Materials | Evolved 2 slots: Utility x2 1962 | -8/Materials | Met 7R-MNS 1991 | -8/Materials | Lost 8 parts (1n3u4w) 2033 | -8/Materials | Discovered new exit (range 15) 2078 | -8/Materials | Identified exit to Factory 2095 | -8/Materials | Discovered new exit (range 5) 2099 | -8/Materials | Identified exit to Storage 2163 | -8/Materials | Entered Storage 2641 | -8/Storage | Core integrity fell below 50% 2711 | -8/Storage | Lost 3 parts (2n1w) 2961 | -8/Storage | Core integrity fell below 20% 2969 | -8/Storage | Discovered exit to Factory (range 6) 3233 | -8/Storage | Destroyed by Y-45 Defender with Heavy Assault Rifle Last Messages --------------- K-01 Serf collects debris. U-05 Engineer lays Concrete. K-01 Serf collects debris. U-05 Engineer lays Concrete. U-05 Engineer builds a Wall. U-05 Engineer lays Concrete. K-01 Serf collects debris. U-05 Engineer builds a Wall. K-01 Serf cleans the Transfer Shaft. K-01 Serf collects debris. U-05 Engineer lays Concrete. K-01 Serf cleans the Transfer Shaft. U-05 Engineer lays Concrete. U-05 Engineer builds a Wall. K-01 Serf cleans the Transfer Shaft. U-05 Engineer lays Concrete. K-01 Serf collects debris. K-01 Serf cleans the Transfer Shaft. Adv. Treads destroyed. K-01 Serf cleans the Transfer Shaft. Map ----- +----------------------------------------------------+ | ??## #?* """ ???????????????????????????? | | ??## #? ????????????????????????????? | | ??############?? ???????????????????????????? | | ??## #?????????T"# #??????????????????????????? | | ???# ##??????????"# #??????????????????????????? | | ???# #???????????##? #??????????????????????????? | | ???# #??????????????? #??????????????????????????? | | ???# #????????????????#??????????????????????????? | | ???# #???????????????????????????????????????????? | | ???# #???????????????????????????????????????????? | | ???# #???????????????????????????????????????????? | | ???# #???????????????????????????????????????????? | | ???# #???????????????????????????????????????????? | | ???# #???????????????????????????????????????????? | | ???# #???????????????????????????????????????????? | | ???# #????????????# ???????????????????????????? | | ???###????????????# ###????????????????????????? | | #######???????????# # #########????????????????? | | #??????????? # #??????######???## | | #???????????# # #??????# ??? # | | #???????????# # !! #??????# """" # | | #???????????# + ! / #??????# "== # | | #???????????# #k""" !/ #????### " # | | #????* ?????# #*""" #????# # =[ # | | #??? ] ?????# #[""" #######" = # | | #??? ?????# #kY@ ## " %= # | | ! #?? ?????## ####;####### " % [= # | | ##+######+##+##### ##";;;##### #####+##### | | !=%!%!* % "#?? | | =%[!|! "#?? | | % [% !!* = ##?? | | ########### ####+############### #??? | | # #??####""""T ## ##????????# #??? | | + [ #?????######"""## #?????????# #??? | | # #??#####????????# #?????????# #??? | | # [ #### #####???## #?????????# #??? | | + # # ######" #?????????# < #??? | | +####### ## ########"###""##?????????# #??? | | #??###########??????### # ##??????????#####??? | | " #?????????????????????#####??????????????????? | | " #????????????????????????????????????????????? | | " #????????????????????????????????????????????? | | #????????????????????????????????????????????? | | #####????????????????????????????????????????????? | | | | | | | | | | | | | +----------------------------------------------------+ Best States ------------- Heat Dissipation 45 Energy Generation 14 Energy Capacity 280 Matter Stores 300 Matter Capacity 300 Sight Range 18 Robot Scan Range 15 Terrain Scan Density 10 ECM Strength 2 Additional Mass Support 9 Armor Coverage 300 Power Shielding 33 Evasion (%) 43 Targeting Accuracy 8 Recoil Reduction 3 Item Schematics ----------------- Rocket Launcher | -9/Materials | Scanalyzed Robot Schematics ------------------ None Fabricated ------------ Nothing Repaired ---------- Nothing Alien Tech Used ----------------- None Achievements -------------- None Challenges ------------ None Game ------ Seed LongswordDataWheel Manual? 0 Play Time 00:54:33 Cumulative 14.6 hours Start 2025.10.12 @ 01:32:17 End 2025.10.12 @ 02:28:56 Sessions 1 Manual Loads 0 Difficulty Rogue Special Mode None Game No. 21 Rogue 21 Adventurer 0 Explorer 0 Win Type - Total 0 Types 0/0/0/0/0/0/0/0/0/0 Lore% 17 Gallery% 19 Achievement% 16 Wizard Run 0 Options --------- Layout 0 ASCII 0 Keyboard 0 Movement Mouse Keybinds 0 Fullscreen 1 Font 36/Smallcaps Map View 76x50 Zoom Use 0% Tactical HUD 0 Map Filters NONE Filters NONE Steam 1 RUN: bfd1d67b-f000-4bcf-a9c6-1c8a93b442ab